[Event "*** Titled Tuesday Blitz"]
[Site "Chess.com"]
[Date "2021.02.09"]
[Round "3"]
[White "anon481216"]
[Black "sara_khm"]
[Result "0-1"]
[WhiteElo "2475"]
[BlackElo "2702"]
[TimeControl "180+1"]
[EndTime "10:27:31 PST"]
[Termination "sara_khm won by resignation"]

1. d4 {[%clk 0:03:00.9]} 1... Nf6 {[%clk 0:02:58.4]} 2. c4 {[%clk 0:03:01.4]}
2... e6 {[%clk 0:02:58.5]} 3. g3 {[%clk 0:03:02]} 3... c5 {[%clk 0:02:56.7]} 4.
d5 {[%clk 0:03:01.2]} 4... exd5 {[%clk 0:02:56.9]} 5. cxd5 {[%clk 0:03:01.6]}
5... d6 {[%clk 0:02:57.3]} 6. Nf3 {[%clk 0:03:02.1]} 6... g6 {[%clk 0:02:57.7]}
7. Bg2 {[%clk 0:03:02.3]} 7... Bg7 {[%clk 0:02:58.1]} 8. Nc3 {[%clk 0:03:02.8]}
8... O-O {[%clk 0:02:58.2]} 9. O-O {[%clk 0:03:03.4]} 9... Nbd7 {[%clk
0:02:58.6]} 10. a4 {[%clk 0:03:03.6]} 10... a6 {[%clk 0:02:49.7]} 11. Nd2 {[%clk
0:02:50]} 11... Re8 {[%clk 0:02:34]} 12. h3 {[%clk 0:02:49.9]} 12... Rb8 {[%clk
0:02:26.9]} 13. Nc4 {[%clk 0:02:49.5]} 13... Ne5 {[%clk 0:02:26.7]} 14. Na3
{[%clk 0:02:48.7]} 14... Nh5 {[%clk 0:02:08.2]} 15. e4 {[%clk 0:02:47.9]} 15...
b6 {[%clk 0:01:59.1]} 16. Kh2 {[%clk 0:02:45.5]} 16... Nd7 {[%clk 0:01:53.7]}
17. f4 {[%clk 0:02:36.4]} 17... Nf8 {[%clk 0:01:48.1]} 18. Nc4 {[%clk
0:02:24.7]} 18... b5 {[%clk 0:01:38.7]} 19. axb5 {[%clk 0:02:24.3]} 19... axb5
{[%clk 0:01:39]} 20. Nxb5 {[%clk 0:02:24.3]} 20... Rxb5 {[%clk 0:01:37.2]} 21.
g4 {[%clk 0:02:24.3]} 21... Nf6 {[%clk 0:01:36]} 22. e5 {[%clk 0:02:24.4]} 22...
dxe5 {[%clk 0:01:29.7]} 23. fxe5 {[%clk 0:02:24.2]} 23... N6d7 {[%clk
0:01:29.9]} 24. Rxf7 {[%clk 0:01:31.5]} 24... Kxf7 {[%clk 0:01:21.2]} 25. Nd6+
{[%clk 0:01:30.9]} 25... Kg8 {[%clk 0:01:21.2]} 26. Nxb5 {[%clk 0:01:23.9]}
26... Bxe5+ {[%clk 0:01:21.3]} 27. Kh1 {[%clk 0:01:23.7]} 27... Qh4 {[%clk
0:01:19.6]} 28. d6 {[%clk 0:01:20.7]} 28... Qg3 {[%clk 0:01:18.5]} 29. Kg1
{[%clk 0:01:13.4]} 29... Ne6 {[%clk 0:01:17.9]} 30. Ra3 {[%clk 0:01:09.5]} 30...
Qh2+ {[%clk 0:01:17]} 31. Kf1 {[%clk 0:01:09.3]} 31... Rf8+ {[%clk 0:01:16.6]}
32. Rf3 {[%clk 0:01:09.6]} 32... Ba6 {[%clk 0:01:14.6]} 33. Rxf8+ {[%clk
0:01:02.7]} 33... Ndxf8 {[%clk 0:01:13.8]} 34. Qa4 {[%clk 0:01:01.3]} 34...
Bxb5+ {[%clk 0:01:13.1]} 35. Qxb5 {[%clk 0:01:01.3]} 35... Bxd6 {[%clk
0:01:13.7]} 36. Bh6 {[%clk 0:00:59.4]} 36... Qe5 {[%clk 0:01:11.6]} 37. Qb3
{[%clk 0:00:54.6]} 37... Qf6+ {[%clk 0:01:09.7]} 38. Kg1 {[%clk 0:00:54.4]}
38... g5 {[%clk 0:01:08.6]} 39. Bxf8 {[%clk 0:00:51.8]} 39... Kxf8 {[%clk
0:01:08.9]} 40. Qd5 {[%clk 0:00:49.5]} 40... Qd4+ {[%clk 0:01:08.2]} 41. Qxd4
{[%clk 0:00:49.7]} 41... Nxd4 {[%clk 0:01:07.9]} 0-1

[Event "*** Titled Tuesday Blitz"]
[Site "Chess.com"]
[Date "2021.02.09"]
[Round "3"]
[White "kuban1991"]
[Black "jkidjr22"]
[Result "1-0"]
[WhiteElo "2899"]
[BlackElo "2653"]
[TimeControl "180+1"]
[EndTime "10:27:33 PST"]
[Termination "kuban1991 won by resignation"]

1. Nf3 {[%clk 0:03:00.9]} 1... Nf6 {[%clk 0:02:58.8]} 2. g3 {[%clk 0:03:01.1]}
2... g6 {[%clk 0:02:59]} 3. Bg2 {[%clk 0:03:02]} 3... Bg7 {[%clk 0:02:58.9]} 4.
O-O {[%clk 0:03:02.9]} 4... O-O {[%clk 0:02:59]} 5. c4 {[%clk 0:03:03]} 5... d5
{[%clk 0:02:58.9]} 6. cxd5 {[%clk 0:03:02.2]} 6... Nxd5 {[%clk 0:02:59.8]} 7.
Nc3 {[%clk 0:03:02.5]} 7... c5 {[%clk 0:02:56.1]} 8. d3 {[%clk 0:03:02.2]} 8...
Nc6 {[%clk 0:02:55.4]} 9. Nxd5 {[%clk 0:02:59.8]} 9... Qxd5 {[%clk 0:02:54.4]}
10. Be3 {[%clk 0:03:00.7]} 10... Qd6 {[%clk 0:02:36.3]} 11. Rc1 {[%clk 0:03:00]}
11... b6 {[%clk 0:02:35.4]} 12. d4 {[%clk 0:02:59.3]} 12... cxd4 {[%clk
0:02:26.2]} 13. Nxd4 {[%clk 0:02:58.9]} 13... Nxd4 {[%clk 0:02:27.1]} 14. Bxa8
{[%clk 0:02:57.7]} 14... Ba6 {[%clk 0:02:19.5]} 15. Bxd4 {[%clk 0:02:55.3]}
15... Bxd4 {[%clk 0:02:19]} 16. Bf3 {[%clk 0:02:54.2]} 16... Bxb2 {[%clk
0:02:18.3]} 17. Qxd6 {[%clk 0:02:54.1]} 17... exd6 {[%clk 0:02:19.2]} 18. Rc7
{[%clk 0:02:53.9]} 18... Re8 {[%clk 0:02:16.8]} 19. Rxa7 {[%clk 0:02:47.7]}
19... Bc4 {[%clk 0:02:15.2]} 20. Rb1 {[%clk 0:02:45.3]} 20... Bd4 {[%clk
0:02:15]} 21. e3 {[%clk 0:02:44.9]} 21... Bc5 {[%clk 0:02:14.1]} 22. a4 {[%clk
0:02:19.4]} 22... b5 {[%clk 0:02:04.5]} 23. Rc7 {[%clk 0:02:19.2]} 23... bxa4
{[%clk 0:02:01]} 24. Bc6 {[%clk 0:02:19.3]} 24... Re5 {[%clk 0:01:36]} 25. Bxa4
{[%clk 0:02:17.7]} 25... h5 {[%clk 0:01:35.7]} 26. Bb3 {[%clk 0:02:15.9]} 26...
Bxb3 {[%clk 0:01:29.5]} 27. Rxb3 {[%clk 0:02:16.8]} 27... h4 {[%clk 0:01:29.7]}
28. gxh4 {[%clk 0:02:11.7]} 28... Rf5 {[%clk 0:01:25.5]} 29. Kg2 {[%clk
0:02:07.4]} 29... Kg7 {[%clk 0:01:25.4]} 30. Rbb7 {[%clk 0:02:07.2]} 30... Rf6
{[%clk 0:01:15.6]} 31. Rd7 {[%clk 0:02:03.8]} 31... Rf5 {[%clk 0:01:14.4]} 32.
Kg3 {[%clk 0:02:03.7]} 32... Rf6 {[%clk 0:01:07.1]} 33. Re7 {[%clk 0:02:03.8]}
33... Rf5 {[%clk 0:01:06.4]} 34. Rbd7 {[%clk 0:01:53.6]} 34... Rf6 {[%clk
0:01:05.1]} 35. f4 {[%clk 0:01:51.9]} 35... Rf5 {[%clk 0:00:58.5]} 36. e4 {[%clk
0:01:51.2]} 36... Rf6 {[%clk 0:00:57.7]} 37. Kg4 {[%clk 0:01:47.9]} 37... Be3
{[%clk 0:00:54.2]} 38. f5 {[%clk 0:01:47.3]} 38... gxf5+ {[%clk 0:00:51.2]} 39.
exf5 {[%clk 0:01:48.2]} 39... Bd4 {[%clk 0:00:51.4]} 40. h5 {[%clk 0:01:44.1]}
40... Be5 {[%clk 0:00:49.2]} 41. Kg5 {[%clk 0:01:41.5]} 41... Bc3 {[%clk
0:00:37.2]} 42. h6+ {[%clk 0:01:39.9]} 42... Kf8 {[%clk 0:00:37.3]} 43. h7
{[%clk 0:01:38.6]} 43... Kg7 {[%clk 0:00:34.8]} 44. Rxf7+ {[%clk 0:01:23]} 44...
Rxf7 {[%clk 0:00:34.6]} 45. h8=Q+ {[%clk 0:01:23.9]} 45... Kxh8 {[%clk
0:00:35.4]} 46. Rxf7 {[%clk 0:01:24.2]} 1-0

[Event "*** Titled Tuesday Blitz"]
[Site "Chess.com"]
[Date "2021.02.09"]
[Round "3"]
[White "agartha01"]
[Black "chessablanca"]
[Result "1-0"]
[WhiteElo "2308"]
[BlackElo "2490"]
[TimeControl "180+1"]
[EndTime "10:27:34 PST"]
[Termination "agartha01 won on time"]

1. d4 {[%clk 0:03:00.9]} 1... Nf6 {[%clk 0:02:58.2]} 2. Nf3 {[%clk 0:03:00.3]}
2... e6 {[%clk 0:02:57.2]} 3. Bf4 {[%clk 0:02:59.7]} 3... c5 {[%clk 0:02:56.1]}
4. c3 {[%clk 0:02:59.7]} 4... Nc6 {[%clk 0:02:52.5]} 5. e3 {[%clk 0:02:59.6]}
5... d5 {[%clk 0:02:49.5]} 6. Nbd2 {[%clk 0:02:59.1]} 6... Be7 {[%clk
0:02:36.1]} 7. Bd3 {[%clk 0:02:58.3]} 7... O-O {[%clk 0:02:36]} 8. O-O {[%clk
0:02:58]} 8... h6 {[%clk 0:02:36.2]} 9. h3 {[%clk 0:02:57.8]} 9... b6 {[%clk
0:02:35.6]} 10. Qe2 {[%clk 0:02:56.6]} 10... Bb7 {[%clk 0:02:35.1]} 11. e4
{[%clk 0:02:54.1]} 11... dxe4 {[%clk 0:02:33.1]} 12. Nxe4 {[%clk 0:02:54]} 12...
cxd4 {[%clk 0:02:31.5]} 13. Nxf6+ {[%clk 0:02:36.7]} 13... Bxf6 {[%clk 0:02:25]}
14. Qe4 {[%clk 0:02:31.6]} 14... g6 {[%clk 0:02:00.6]} 15. Bxh6 {[%clk
0:02:30.9]} 15... Re8 {[%clk 0:02:00.9]} 16. Qg4 {[%clk 0:02:22.4]} 16... dxc3
{[%clk 0:00:56.7]} 17. Bxg6 {[%clk 0:02:14.1]} 17... fxg6 {[%clk 0:00:57.6]} 18.
Qxg6+ {[%clk 0:02:13.6]} 18... Kh8 {[%clk 0:00:58.2]} 19. Ng5 {[%clk 0:02:10.1]}
19... Re7 {[%clk 0:00:13.4]} 20. Qxf6+ {[%clk 0:02:09.2]} 20... Kg8 {[%clk
0:00:14]} 21. Qg6+ {[%clk 0:01:45.8]} 21... Kh8 {[%clk 0:00:13.6]} 22. Nf7+
{[%clk 0:01:46.4]} 22... Rxf7 {[%clk 0:00:13.5]} 23. Qxf7 {[%clk 0:01:47]} 23...
Qg8 {[%clk 0:00:13.1]} 24. Qxb7 {[%clk 0:01:41.5]} 24... cxb2 {[%clk 0:00:11]}
25. Qxc6 {[%clk 0:01:34.6]} 25... bxa1=Q {[%clk 0:00:09.6]} 26. Rxa1 {[%clk
0:01:35.3]} 26... Rc8 {[%clk 0:00:09.1]} 27. Qe4 {[%clk 0:01:31]} 27... Qf7
{[%clk 0:00:05.3]} 28. Be3 {[%clk 0:01:28]} 28... Rf8 {[%clk 0:00:04.3]} 29. Rd1
{[%clk 0:01:25.9]} 29... Kg8 {[%clk 0:00:03.9]} 30. Qg4+ {[%clk 0:01:25.5]}
30... Kh8 {[%clk 0:00:03.3]} 31. Rd4 {[%clk 0:01:25.4]} 31... e5 {[%clk
0:00:02.6]} 32. Qh4+ {[%clk 0:01:25.6]} 32... Kg7 {[%clk 0:00:01.4]} 33. Rg4+
{[%clk 0:01:26.2]} 1-0

[Event "*** Titled Tuesday Blitz"]
[Site "Chess.com"]
[Date "2021.02.09"]
[Round "3"]
[White "siciliannaga"]
[Black "j2806"]
[Result "1-0"]
[WhiteElo "2789"]
[BlackElo "2093"]
[TimeControl "180+1"]
[EndTime "10:27:35 PST"]
[Termination "siciliannaga won by resignation"]

1. e4 {[%clk 0:03:00.9]} 1... c5 {[%clk 0:02:56.4]} 2. Nc3 {[%clk 0:03:01.8]}
2... Nc6 {[%clk 0:02:54.5]} 3. f4 {[%clk 0:03:02.7]} 3... e6 {[%clk 0:02:53.2]}
4. Nf3 {[%clk 0:03:03.6]} 4... Nf6 {[%clk 0:02:52.8]} 5. e5 {[%clk 0:03:02.1]}
5... Ng8 {[%clk 0:02:50.8]} 6. d4 {[%clk 0:03:01.8]} 6... d6 {[%clk 0:02:45.5]}
7. Bb5 {[%clk 0:02:55]} 7... dxe5 {[%clk 0:02:21.8]} 8. Bxc6+ {[%clk 0:02:50.3]}
8... bxc6 {[%clk 0:02:19.2]} 9. dxe5 {[%clk 0:02:51.2]} 9... Ne7 {[%clk
0:02:12.3]} 10. Qxd8+ {[%clk 0:02:50.1]} 10... Kxd8 {[%clk 0:02:09.9]} 11. Ne4
{[%clk 0:02:50.5]} 11... Nd5 {[%clk 0:02:08.8]} 12. c4 {[%clk 0:02:41.9]} 12...
Nb4 {[%clk 0:02:05.5]} 13. Ke2 {[%clk 0:02:41.4]} 13... h6 {[%clk 0:02:02.8]}
14. a3 {[%clk 0:02:39.8]} 14... Na6 {[%clk 0:02:01.7]} 15. Rd1+ {[%clk
0:02:37.6]} 15... Kc7 {[%clk 0:01:59.8]} 16. Be3 {[%clk 0:02:38.5]} 16... Rb8
{[%clk 0:01:57.4]} 17. Rd2 {[%clk 0:02:37.9]} 17... Be7 {[%clk 0:01:56]} 18.
Rad1 {[%clk 0:02:36.8]} 18... Rd8 {[%clk 0:01:55.3]} 19. Nd6 {[%clk 0:02:36.3]}
19... f6 {[%clk 0:01:52.1]} 20. Nh4 {[%clk 0:02:20.4]} 20... fxe5 {[%clk
0:01:45.5]} 21. Ng6 {[%clk 0:02:15.8]} 21... Bxd6 {[%clk 0:01:30.5]} 22. fxe5
{[%clk 0:02:15.2]} 22... Be7 {[%clk 0:01:25]} 23. Nxe7 {[%clk 0:02:14.7]} 23...
Rxd2+ {[%clk 0:01:24.8]} 24. Rxd2 {[%clk 0:02:15.6]} 24... Bd7 {[%clk
0:01:23.9]} 25. Ng6 {[%clk 0:02:12]} 25... Be8 {[%clk 0:01:10.2]} 26. Nf4 {[%clk
0:02:09.3]} 26... Bd7 {[%clk 0:01:08.9]} 27. Nd3 {[%clk 0:02:08.8]} 27... Rf8
{[%clk 0:01:04.1]} 28. Bxc5 {[%clk 0:02:08.2]} 28... Nxc5 {[%clk 0:00:57.3]} 29.
Nxc5 {[%clk 0:02:09.1]} 29... Bc8 {[%clk 0:00:57.9]} 30. Ke3 {[%clk 0:02:00.7]}
30... Rf5 {[%clk 0:00:54.6]} 31. Nd3 {[%clk 0:01:58.3]} 31... Rh5 {[%clk
0:00:49]} 32. g3 {[%clk 0:01:57.3]} 32... Rf5 {[%clk 0:00:48]} 33. Rf2 {[%clk
0:01:57.2]} 33... Kd7 {[%clk 0:00:38.1]} 34. Nc5+ {[%clk 0:01:55.4]} 34... Ke7
{[%clk 0:00:34.9]} 35. Rxf5 {[%clk 0:01:53.2]} 35... exf5 {[%clk 0:00:34.8]} 36.
b4 {[%clk 0:01:52]} 36... g6 {[%clk 0:00:34.7]} 37. h4 {[%clk 0:01:51.9]} 37...
g5 {[%clk 0:00:31.8]} 38. hxg5 {[%clk 0:01:52.8]} 38... hxg5 {[%clk 0:00:31.2]}
39. a4 {[%clk 0:01:53.4]} 39... Kf7 {[%clk 0:00:29]} 40. b5 {[%clk 0:01:51.8]}
40... cxb5 {[%clk 0:00:28.7]} 41. cxb5 {[%clk 0:01:52.7]} 41... Ke7 {[%clk
0:00:28.7]} 42. a5 {[%clk 0:01:53]} 42... Kd8 {[%clk 0:00:26.3]} 43. b6 {[%clk
0:01:51.9]} 43... axb6 {[%clk 0:00:24.5]} 44. axb6 {[%clk 0:01:52.8]} 44... Bd7
{[%clk 0:00:15.3]} 45. b7 {[%clk 0:01:51.2]} 45... Kc7 {[%clk 0:00:12.3]} 46.
Nxd7 {[%clk 0:01:49]} 1-0

[Event "*** Titled Tuesday Blitz"]
[Site "Chess.com"]
[Date "2021.02.09"]
[Round "3"]
[White "Vugar_Manafov"]
[Black "BilodeauA"]
[Result "0-1"]
[WhiteElo "2648"]
[BlackElo "2892"]
[TimeControl "180+1"]
[EndTime "10:27:43 PST"]
[Termination "BilodeauA won by resignation"]

1. Nf3 {[%clk 0:02:59]} 1... d5 {[%clk 0:02:59.8]} 2. g3 {[%clk 0:02:59.4]} 2...
Nc6 {[%clk 0:02:59]} 3. Bg2 {[%clk 0:02:59.6]} 3... e5 {[%clk 0:02:59.1]} 4. O-O
{[%clk 0:02:59.5]} 4... Nf6 {[%clk 0:02:59.8]} 5. d3 {[%clk 0:02:59.2]} 5... Bc5
{[%clk 0:02:59.9]} 6. Nc3 {[%clk 0:02:59.1]} 6... d4 {[%clk 0:02:52.5]} 7. Nb1
{[%clk 0:02:53]} 7... O-O {[%clk 0:02:51.6]} 8. a3 {[%clk 0:02:47.2]} 8... a5
{[%clk 0:02:51.1]} 9. c3 {[%clk 0:02:43.4]} 9... Re8 {[%clk 0:02:50.3]} 10. Nbd2
{[%clk 0:02:43.4]} 10... h6 {[%clk 0:02:49.1]} 11. Rb1 {[%clk 0:02:34.1]} 11...
a4 {[%clk 0:02:47.9]} 12. Qc2 {[%clk 0:02:16.9]} 12... Bf8 {[%clk 0:02:47.6]}
13. Nc4 {[%clk 0:02:08.4]} 13... Bf5 {[%clk 0:02:44.9]} 14. Nfd2 {[%clk
0:01:47.8]} 14... Qd7 {[%clk 0:02:39.1]} 15. Ne4 {[%clk 0:01:36.9]} 15... Nxe4
{[%clk 0:02:36.4]} 16. dxe4 {[%clk 0:01:35.1]} 16... Be6 {[%clk 0:02:36.2]} 17.
Nd2 {[%clk 0:01:35.6]} 17... dxc3 {[%clk 0:02:31.3]} 18. bxc3 {[%clk 0:01:31.3]}
18... Na5 {[%clk 0:02:29.8]} 19. f4 {[%clk 0:01:04.1]} 19... f6 {[%clk
0:02:24.3]} 20. fxe5 {[%clk 0:01:03.4]} 20... fxe5 {[%clk 0:02:25.2]} 21. Nf3
{[%clk 0:01:03.2]} 21... Nc4 {[%clk 0:02:23.8]} 22. Rxb7 {[%clk 0:01:00.3]}
22... Qc6 {[%clk 0:02:17.2]} 23. Rb1 {[%clk 0:00:57.1]} 23... Bxa3 {[%clk
0:02:14.7]} 24. Nh4 {[%clk 0:00:33.9]} 24... Bxc1 {[%clk 0:02:13.3]} 25. Qxc1
{[%clk 0:00:34.8]} 25... Qc5+ {[%clk 0:02:04.8]} 26. Kh1 {[%clk 0:00:34.2]}
26... Qe3 {[%clk 0:02:05.5]} 27. Qe1 {[%clk 0:00:11.6]} 27... Nd2 {[%clk
0:01:55.6]} 28. Nf5 {[%clk 0:00:11.9]} 28... Bxf5 {[%clk 0:01:56.2]} 29. exf5
{[%clk 0:00:12.8]} 29... e4 {[%clk 0:01:51.3]} 30. f6 {[%clk 0:00:10.6]} 30...
Rf8 {[%clk 0:01:51.9]} 31. f7+ {[%clk 0:00:07.9]} 31... Kh8 {[%clk 0:01:48.6]}
32. Rb4 {[%clk 0:00:08]} 32... Nxf1 {[%clk 0:01:47.2]} 33. Qxf1 {[%clk
0:00:08.9]} 33... a3 {[%clk 0:01:42.7]} 34. Rxe4 {[%clk 0:00:08.5]} 34... Qxc3
{[%clk 0:01:41.1]} 35. Qf5 {[%clk 0:00:02.7]} 35... Qa1+ {[%clk 0:01:36.2]} 36.
Bf1 {[%clk 0:00:02.5]} 36... Qf6 {[%clk 0:01:37]} 0-1

[Event "*** Titled Tuesday Blitz"]
[Site "Chess.com"]
[Date "2021.02.09"]
[Round "3"]
[White "J36225"]
[Black "Sharpchess22"]
[Result "0-1"]
[WhiteElo "2479"]
[BlackElo "2713"]
[TimeControl "180+1"]
[EndTime "10:27:43 PST"]
[Termination "Sharpchess22 won by resignation"]

1. e4 {[%clk 0:03:00.9]} 1... d6 {[%clk 0:02:58.9]} 2. Nf3 {[%clk 0:02:55.9]}
2... g6 {[%clk 0:02:57.5]} 3. d4 {[%clk 0:02:54.1]} 3... Bg7 {[%clk 0:02:57.4]}
4. Nc3 {[%clk 0:02:53.4]} 4... Nf6 {[%clk 0:02:56.5]} 5. h3 {[%clk 0:02:52.4]}
5... O-O {[%clk 0:02:56.1]} 6. Bc4 {[%clk 0:02:51.8]} 6... Nxe4 {[%clk
0:02:54.7]} 7. Nxe4 {[%clk 0:02:51.3]} 7... d5 {[%clk 0:02:54.5]} 8. Bxd5 {[%clk
0:02:50.8]} 8... Qxd5 {[%clk 0:02:53.7]} 9. Nc3 {[%clk 0:02:51.5]} 9... Qc4
{[%clk 0:02:51]} 10. Qe2 {[%clk 0:02:48.4]} 10... Qxe2+ {[%clk 0:02:50.2]} 11.
Nxe2 {[%clk 0:02:48.2]} 11... Bf5 {[%clk 0:02:46.5]} 12. c3 {[%clk 0:02:41.9]}
12... Be4 {[%clk 0:02:46.4]} 13. Bf4 {[%clk 0:02:15.2]} 13... Bxf3 {[%clk
0:02:37.4]} 14. gxf3 {[%clk 0:02:14.4]} 14... Rc8 {[%clk 0:02:33.1]} 15. O-O-O
{[%clk 0:02:12.9]} 15... Nd7 {[%clk 0:02:29]} 16. Ng3 {[%clk 0:02:12]} 16... c6
{[%clk 0:02:22.5]} 17. Ne4 {[%clk 0:02:11.4]} 17... h6 {[%clk 0:02:14.4]} 18.
Nc5 {[%clk 0:02:07.2]} 18... Nxc5 {[%clk 0:02:11.7]} 19. dxc5 {[%clk 0:02:08.1]}
19... e5 {[%clk 0:02:02.6]} 20. Be3 {[%clk 0:02:02.4]} 20... Rd8 {[%clk
0:01:58]} 21. f4 {[%clk 0:01:59.8]} 21... e4 {[%clk 0:01:51.4]} 22. f5 {[%clk
0:01:27.4]} 22... gxf5 {[%clk 0:01:49.4]} 23. Rdg1 {[%clk 0:01:25.8]} 23... Kh7
{[%clk 0:01:47.9]} 24. Rg2 {[%clk 0:01:20.1]} 24... Rd5 {[%clk 0:01:42]} 25.
Rhg1 {[%clk 0:01:15.4]} 25... Be5 {[%clk 0:01:40.3]} 26. Bd4 {[%clk 0:01:10.1]}
26... Rxd4 {[%clk 0:01:34.3]} 27. cxd4 {[%clk 0:01:08.2]} 27... Bxd4 {[%clk
0:01:34.5]} 28. Rd1 {[%clk 0:01:04.5]} 28... Rd8 {[%clk 0:01:29.7]} 29. Kc2
{[%clk 0:00:29.1]} 29... a5 {[%clk 0:01:28.5]} 30. a3 {[%clk 0:00:20.4]} 30...
a4 {[%clk 0:01:28.1]} 31. b4 {[%clk 0:00:19.8]} 31... axb3+ {[%clk 0:01:27.9]}
32. Kxb3 {[%clk 0:00:20]} 32... Rd5 {[%clk 0:01:28.1]} 33. Rh2 {[%clk
0:00:08.7]} 33... Bxc5 {[%clk 0:01:25]} 34. Rxd5 {[%clk 0:00:07.9]} 34... cxd5
{[%clk 0:01:25.9]} 35. Rh1 {[%clk 0:00:07.4]} 35... Bxf2 {[%clk 0:01:25.4]} 36.
Rf1 {[%clk 0:00:07.4]} 36... e3 {[%clk 0:01:25.4]} 0-1

[Event "*** Titled Tuesday Blitz"]
[Site "Chess.com"]
[Date "2021.02.09"]
[Round "3"]
[White "Rodalquilar"]
[Black "amatatanav"]
[Result "1-0"]
[WhiteElo "2674"]
[BlackElo "2426"]
[TimeControl "180+1"]
[EndTime "10:27:48 PST"]
[Termination "Rodalquilar won by resignation"]

1. d4 {[%clk 0:03:00.9]} 1... Nf6 {[%clk 0:02:59.8]} 2. Bf4 {[%clk 0:03:01]}
2... e6 {[%clk 0:02:59.5]} 3. e3 {[%clk 0:03:01.2]} 3... b6 {[%clk 0:02:59.7]}
4. Nd2 {[%clk 0:03:00.5]} 4... Bb7 {[%clk 0:02:59.7]} 5. Ngf3 {[%clk 0:03:00.9]}
5... Be7 {[%clk 0:02:59.4]} 6. h3 {[%clk 0:03:00.9]} 6... O-O {[%clk 0:02:59]}
7. Bd3 {[%clk 0:03:01.2]} 7... c5 {[%clk 0:02:58.8]} 8. c3 {[%clk 0:03:00.9]}
8... d5 {[%clk 0:02:57.3]} 9. O-O {[%clk 0:03:00.8]} 9... Nbd7 {[%clk
0:02:57.1]} 10. Qe2 {[%clk 0:03:00.7]} 10... Ne4 {[%clk 0:02:55.8]} 11. Rfe1
{[%clk 0:03:00.2]} 11... Nxd2 {[%clk 0:02:45.3]} 12. Qxd2 {[%clk 0:02:58.1]}
12... Nf6 {[%clk 0:02:36]} 13. Rad1 {[%clk 0:02:57.1]} 13... a5 {[%clk
0:02:34.6]} 14. Qe2 {[%clk 0:02:50.4]} 14... c4 {[%clk 0:02:31.3]} 15. Bc2
{[%clk 0:02:50.1]} 15... b5 {[%clk 0:02:31.1]} 16. Nd2 {[%clk 0:02:39.3]} 16...
b4 {[%clk 0:02:29.1]} 17. e4 {[%clk 0:02:39.2]} 17... a4 {[%clk 0:02:07.8]} 18.
e5 {[%clk 0:02:25.5]} 18... Nd7 {[%clk 0:02:07.2]} 19. cxb4 {[%clk 0:02:25.9]}
19... Bxb4 {[%clk 0:02:01.3]} 20. a3 {[%clk 0:02:26.1]} 20... Be7 {[%clk
0:01:21.8]} 21. Qh5 {[%clk 0:02:25.7]} 21... g6 {[%clk 0:01:21.5]} 22. Qg4
{[%clk 0:02:20.6]} 22... c3 {[%clk 0:01:05.5]} 23. bxc3 {[%clk 0:02:20.2]} 23...
Bxa3 {[%clk 0:01:05.4]} 24. Nf3 {[%clk 0:02:20.5]} 24... Be7 {[%clk 0:00:48.8]}
25. h4 {[%clk 0:02:20.5]} 25... Re8 {[%clk 0:00:36.3]} 26. h5 {[%clk 0:02:20.4]}
26... Nf8 {[%clk 0:00:36.2]} 27. hxg6 {[%clk 0:02:19]} 27... hxg6 {[%clk
0:00:35.2]} 28. g3 {[%clk 0:02:04.3]} 28... a3 {[%clk 0:00:16.8]} 29. Kg2 {[%clk
0:02:04.7]} 29... a2 {[%clk 0:00:16.5]} 30. Ra1 {[%clk 0:02:02.1]} 30... Nh7
{[%clk 0:00:04.5]} 31. Bxg6 {[%clk 0:01:53.3]} 31... fxg6 {[%clk 0:00:03.8]} 32.
Qxg6+ {[%clk 0:01:53.4]} 32... Kh8 {[%clk 0:00:03.9]} 33. Rh1 {[%clk 0:01:53.6]}
33... Bh4 {[%clk 0:00:03.9]} 34. Rxh4 {[%clk 0:01:45.6]} 34... Re7 {[%clk
0:00:04.5]} 35. Bg5 {[%clk 0:01:33]} 35... Rg7 {[%clk 0:00:04.7]} 36. Bf6 {[%clk
0:01:24.8]} 36... Qxf6 {[%clk 0:00:04.3]} 37. Qxf6 {[%clk 0:01:25.2]} 1-0

[Event "*** Titled Tuesday Blitz"]
[Site "Chess.com"]
[Date "2021.02.09"]
[Round "3"]
[White "kidagent"]
[Black "AurumO"]
[Result "1-0"]
[WhiteElo "2271"]
[BlackElo "1894"]
[TimeControl "180+1"]
[EndTime "10:27:51 PST"]
[Termination "kidagent won by resignation"]

1. e4 {[%clk 0:03:00.9]} 1... c5 {[%clk 0:02:59]} 2. Nf3 {[%clk 0:03:00.6]} 2...
Nc6 {[%clk 0:02:58.4]} 3. d4 {[%clk 0:03:01.1]} 3... cxd4 {[%clk 0:02:58.5]} 4.
Nxd4 {[%clk 0:03:02]} 4... g6 {[%clk 0:02:58.7]} 5. Nc3 {[%clk 0:03:01.1]} 5...
Bg7 {[%clk 0:02:58.6]} 6. Be3 {[%clk 0:03:01.7]} 6... Nf6 {[%clk 0:02:58.1]} 7.
Bc4 {[%clk 0:03:00.1]} 7... O-O {[%clk 0:02:58.4]} 8. O-O {[%clk 0:02:59.1]}
8... d6 {[%clk 0:02:58.2]} 9. h3 {[%clk 0:02:56]} 9... Bd7 {[%clk 0:02:56.2]}
10. Qd2 {[%clk 0:02:52.8]} 10... Rc8 {[%clk 0:02:52.1]} 11. Bb3 {[%clk
0:02:52.3]} 11... Na5 {[%clk 0:02:49.9]} 12. Rae1 {[%clk 0:02:51.1]} 12... Nc4
{[%clk 0:02:48.9]} 13. Bxc4 {[%clk 0:02:50.7]} 13... Rxc4 {[%clk 0:02:49.8]} 14.
f4 {[%clk 0:02:48.1]} 14... Qc7 {[%clk 0:02:31.6]} 15. Qd3 {[%clk 0:02:26.6]}
15... a6 {[%clk 0:02:20.9]} 16. e5 {[%clk 0:02:25.8]} 16... Ne8 {[%clk
0:02:13.5]} 17. Nd5 {[%clk 0:02:22.2]} 17... Rxd4 {[%clk 0:01:58.1]} 18. Bxd4
{[%clk 0:02:16.5]} 18... Bb5 {[%clk 0:01:37.7]} 19. Nxc7 {[%clk 0:01:38.6]}
19... Bxd3 {[%clk 0:01:33.6]} 20. Nxe8 {[%clk 0:01:38.4]} 20... Bxf1 {[%clk
0:01:13.9]} 21. Nxg7 {[%clk 0:01:33.8]} 21... Bb5 {[%clk 0:01:11.2]} 22. exd6
{[%clk 0:01:32.6]} 22... exd6 {[%clk 0:00:48.2]} 23. f5 {[%clk 0:01:29.6]} 23...
Bc4 {[%clk 0:00:26.9]} 24. b3 {[%clk 0:01:26.8]} 24... Bb5 {[%clk 0:00:26.1]}
25. c4 {[%clk 0:01:24.8]} 25... Bc6 {[%clk 0:00:25.8]} 26. Re7 {[%clk
0:01:18.8]} 26... Rd8 {[%clk 0:00:15.3]} 27. h4 {[%clk 0:01:11.8]} 27... d5
{[%clk 0:00:11.3]} 28. c5 {[%clk 0:01:10.5]} 28... Rf8 {[%clk 0:00:07.3]} 29. h5
{[%clk 0:01:09.8]} 29... Rd8 {[%clk 0:00:06.2]} 30. hxg6 {[%clk 0:01:05.4]}
30... hxg6 {[%clk 0:00:04.6]} 31. fxg6 {[%clk 0:01:05.4]} 31... fxg6 {[%clk
0:00:04.6]} 32. Ne6 {[%clk 0:01:04]} 1-0